[Event "Titled Tuesday Blitz December 14 2021"]
[White "Maksimenko, Viktor"]
[Black "Ibrahimli, Murad"]
[WhiteFideId "13710478"]
[BlackFideId "13410229"]
[WhiteElo "2269"]
[BlackElo "2109"]
[Result "0-1"]
[Round "03"]
[TimeControl "180+1"]
[Date "2021.12.14"]
[WhiteClock "0:00:07"]
[BlackClock "0:00:05"]

1. d4 {[%clk 0:03:00]}  Nf6 {[%clk 0:02:59]} 2. c4 {[%clk 0:03:01]}  e6 {[%clk 0:02:59]} 3. Nf3 {[%clk 0:03:00]}  d5 {[%clk 0:02:58]} 4. g3 {[%clk 0:03:01]}  Bb4+ {[%clk 0:02:52]} 5. Bd2 {[%clk 0:03:00]}  Bd6 {[%clk 0:02:52]} 6. Bg5 {[%clk 0:02:57]}  Nbd7 {[%clk 0:02:47]} 7. Nc3 {[%clk 0:02:57]}  h6 {[%clk 0:02:46]} 8. Bxf6 {[%clk 0:02:56]}  Nxf6 {[%clk 0:02:47]} 9. Bg2 {[%clk 0:02:57]}  O-O {[%clk 0:02:47]} 10. O-O {[%clk 0:02:57]}  c6 {[%clk 0:02:40]} 11. Qd3 {[%clk 0:02:55]}  b6 {[%clk 0:02:38]} 12. e4 {[%clk 0:02:54]}  Ba6 {[%clk 0:02:37]} 13. Nd2 {[%clk 0:02:46]}  dxc4 {[%clk 0:02:28]} 14. Nxc4 {[%clk 0:02:35]}  Be7 {[%clk 0:02:27]} 15. b3 {[%clk 0:02:33]}  Rc8 {[%clk 0:02:23]} 16. Rfd1 {[%clk 0:02:30]}  b5 {[%clk 0:02:23]} 17. Ne5 {[%clk 0:02:28]}  Qa5 {[%clk 0:02:22]} 18. Qe3 {[%clk 0:02:26]}  Rfd8 {[%clk 0:02:19]} 19. h3 {[%clk 0:02:16]}  Ba3 {[%clk 0:02:14]} 20. Rab1 {[%clk 0:02:14]}  Bb4 {[%clk 0:02:14]} 21. Ne2 {[%clk 0:02:03]}  c5 {[%clk 0:01:52]} 22. d5 {[%clk 0:02:01]}  exd5 {[%clk 0:01:52]} 23. exd5 {[%clk 0:02:02]}  Re8 {[%clk 0:01:52]} 24. Qf4 {[%clk 0:01:43]}  c4 {[%clk 0:01:40]} 25. Nd4 {[%clk 0:01:38]}  Bd6 {[%clk 0:01:36]} 26. Nec6 {[%clk 0:01:22]}  Qc7 {[%clk 0:01:03]} 27. Qd2 {[%clk 0:01:19]}  Ne4 {[%clk 0:01:02]} 28. Qc2 {[%clk 0:01:16]}  Nc5 {[%clk 0:00:38]} 29. b4 {[%clk 0:01:01]}  Na4 {[%clk 0:00:29]} 30. a3 {[%clk 0:01:00]}  g6 {[%clk 0:00:27]} 31. h4 {[%clk 0:01:00]}  h5 {[%clk 0:00:26]} 32. Re1 {[%clk 0:00:56]}  Qb6 {[%clk 0:00:24]} 33. Be4 {[%clk 0:00:52]}  Kg7 {[%clk 0:00:22]} 34. Nf3 {[%clk 0:00:49]}  Bb7 {[%clk 0:00:16]} 35. Ng5 {[%clk 0:00:48]}  Qc7 {[%clk 0:00:16]} 36. Re3 {[%clk 0:00:40]}  a6 {[%clk 0:00:11]} 37. Rbe1 {[%clk 0:00:41]}  Qd7 {[%clk 0:00:11]} 38. Rf3 {[%clk 0:00:34]}  f5 {[%clk 0:00:10]} 39. Ne6+ {[%clk 0:00:16]}  Rxe6 {[%clk 0:00:09]} 40. dxe6 {[%clk 0:00:17]}  Qxe6 {[%clk 0:00:09]} 41. Rfe3 {[%clk 0:00:17]}  fxe4 {[%clk 0:00:09]} 42. Rxe4 {[%clk 0:00:18]}  Qf5 {[%clk 0:00:08]} 43. Nd4 {[%clk 0:00:17]}  Bxe4 {[%clk 0:00:05]} 44. Nxf5+ {[%clk 0:00:17]}  Bxf5 {[%clk 0:00:05]} 45. Qd2 {[%clk 0:00:18]}  Bf8 {[%clk 0:00:05]} 46. Qd4+ {[%clk 0:00:18]}  Kg8 {[%clk 0:00:05]} 47. Rc1 {[%clk 0:00:13]}  c3 {[%clk 0:00:05]} 48. f4 {[%clk 0:00:12]}  c2 {[%clk 0:00:05]} 49. Kf2 {[%clk 0:00:12]}  Rc3 {[%clk 0:00:05]} 50. Qd5+ {[%clk 0:00:10]}  Kh8 {[%clk 0:00:05]} 51. Qd4+ {[%clk 0:00:10]}  Bg7 {[%clk 0:00:06]} 52. Qd8+ {[%clk 0:00:10]}  Kh7 {[%clk 0:00:06]} 53. Qd5 {[%clk 0:00:07]}  Nb2 {[%clk 0:00:06]} 54. Ke2 {[%clk 0:00:06]}  Nd3 {[%clk 0:00:06]} 55. Kd2 {[%clk 0:00:07]}  Nxc1 {[%clk 0:00:06]} 56. Kxc1 {[%clk 0:00:07]}  Rd3 {[%clk 0:00:05]} 0-1


[Site "https://www.chess.com"]

[Event "Titled Tuesday Blitz December 14 2021"]
[White "Maksimovic, Bojan"]
[Black "Stoleriu, George"]
[WhiteFideId "14408120"]
[BlackFideId "1227505"]
[WhiteElo "2458"]
[BlackElo "2199"]
[Result "1/2-1/2"]
[Round "03"]
[TimeControl "180+1"]
[Date "2021.12.15"]
[WhiteClock "0:00:05"]
[BlackClock "0:00:03"]

1. e4 {[%clk 0:03:00]}  e6 {[%clk 0:02:59]} 2. d4 {[%clk 0:03:00]}  d5 {[%clk 0:03:00]} 3. Nc3 {[%clk 0:03:01]}  Bb4 {[%clk 0:03:00]} 4. e5 {[%clk 0:03:01]}  c5 {[%clk 0:03:00]} 5. a3 {[%clk 0:03:01]}  Bxc3+ {[%clk 0:03:01]} 6. bxc3 {[%clk 0:03:02]}  Qc7 {[%clk 0:03:02]} 7. Nf3 {[%clk 0:03:00]}  Ne7 {[%clk 0:03:01]} 8. a4 {[%clk 0:02:57]}  b6 {[%clk 0:02:57]} 9. Bb5+ {[%clk 0:02:51]}  Bd7 {[%clk 0:02:57]} 10. Bd3 {[%clk 0:02:51]}  h6 {[%clk 0:02:54]} 11. h4 {[%clk 0:02:51]}  Nbc6 {[%clk 0:02:54]} 12. h5 {[%clk 0:02:50]}  Na5 {[%clk 0:02:54]} 13. Qd2 {[%clk 0:02:50]}  Nc4 {[%clk 0:02:53]} 14. Qf4 {[%clk 0:02:50]}  f5 {[%clk 0:02:49]} 15. Qg3 {[%clk 0:02:10]}  Rg8 {[%clk 0:02:34]} 16. Ng1 {[%clk 0:01:59]}  cxd4 {[%clk 0:02:25]} 17. cxd4 {[%clk 0:01:59]}  Nxe5 {[%clk 0:01:52]} 18. Kd1 {[%clk 0:01:20]}  Qc3 {[%clk 0:01:50]} 19. Ra3 {[%clk 0:01:19]}  Qxd4 {[%clk 0:01:28]} 20. Ne2 {[%clk 0:01:18]}  f4 {[%clk 0:01:27]} 21. Bxf4 {[%clk 0:01:17]}  Qb2 {[%clk 0:01:24]} 22. Bc1 {[%clk 0:01:17]}  Nxd3 {[%clk 0:01:19]} 23. Bxb2 {[%clk 0:01:06]}  Nxb2+ {[%clk 0:01:20]} 24. Kc1 {[%clk 0:01:06]}  Nc4 {[%clk 0:01:19]} 25. Rc3 {[%clk 0:01:01]}  Nf5 {[%clk 0:01:18]} 26. Qc7 {[%clk 0:00:57]}  Ke7 {[%clk 0:01:13]} 27. Nf4 {[%clk 0:00:37]}  Rgc8 {[%clk 0:01:12]} 28. Ng6+ {[%clk 0:00:37]}  Ke8 {[%clk 0:01:11]} 29. Qf4 {[%clk 0:00:38]}  Ncd6 {[%clk 0:01:00]} 30. Rxc8+ {[%clk 0:00:36]}  Rxc8 {[%clk 0:01:01]} 31. g4 {[%clk 0:00:30]}  Rc4 {[%clk 0:01:00]} 32. Qf3 {[%clk 0:00:30]}  Rxc2+ {[%clk 0:00:45]} 33. Kb1 {[%clk 0:00:19]}  Ne4 {[%clk 0:00:33]} 34. Rd1 {[%clk 0:00:10]}  Bxa4 {[%clk 0:00:17]} 35. Rd3 {[%clk 0:00:04]}  Rxf2 {[%clk 0:00:15]} 36. Qh3 {[%clk 0:00:03]}  Bc2+ {[%clk 0:00:08]} 37. Kc1 {[%clk 0:00:02]}  Bxd3 {[%clk 0:00:06]} 38. Qxd3 {[%clk 0:00:03]}  Nfg3 {[%clk 0:00:05]} 39. Qa6 {[%clk 0:00:03]}  Ne2+ {[%clk 0:00:05]} 40. Kb2 {[%clk 0:00:02]}  Nd4+ {[%clk 0:00:05]} 41. Ka3 {[%clk 0:00:03]}  Rf3+ {[%clk 0:00:03]} 42. Kb2 {[%clk 0:00:03]}  Rf2+ {[%clk 0:00:03]} 43. Kc1 {[%clk 0:00:02]}  Nb3+ {[%clk 0:00:02]} 44. Kd1 {[%clk 0:00:03]}  Nc3+ {[%clk 0:00:01]} 45. Ke1 {[%clk 0:00:03]}  Re2+ {[%clk 0:00:02]} 46. Kf1 {[%clk 0:00:04]}  Nd2+ {[%clk 0:00:02]} 47. Kg1 {[%clk 0:00:04]}  Nf3+ {[%clk 0:00:03]} 48. Kf1 {[%clk 0:00:04]}  Nd2+ {[%clk 0:00:03]} 49. Kg1 {[%clk 0:00:05]}  Nf3+ {[%clk 0:00:04]} 50. Kf1 {[%clk 0:00:05]}  Nh2+ {[%clk 0:00:04]} 51. Kg1 {[%clk 0:00:05]}  Nf3+ {[%clk 0:00:03]} 1/2-1/2


[Site "https://www.chess.com"]

[Event "Titled Tuesday Blitz December 14 2021"]
[White "Maltsevskaya, Aleksandra"]
[Black "Maly, Alexey"]
[WhiteFideId "24174041"]
[BlackFideId "14103184"]
[WhiteElo "2312"]
[BlackElo "2294"]
[Result "0-1"]
[Round "03"]
[TimeControl "180+1"]
[Date "2021.12.15"]
[WhiteClock "0:00:14"]
[BlackClock "0:00:58"]

1. e4 {[%clk 0:02:56]}  c6 {[%clk 0:03:00]} 2. Nc3 {[%clk 0:02:51]}  d5 {[%clk 0:03:01]} 3. Nf3 {[%clk 0:02:51]}  Bg4 {[%clk 0:03:01]} 4. h3 {[%clk 0:02:43]}  Bxf3 {[%clk 0:03:01]} 5. Qxf3 {[%clk 0:02:42]}  e6 {[%clk 0:03:01]} 6. g3 {[%clk 0:02:40]}  Nf6 {[%clk 0:03:01]} 7. Bg2 {[%clk 0:02:40]}  dxe4 {[%clk 0:03:02]} 8. Nxe4 {[%clk 0:02:41]}  Nxe4 {[%clk 0:03:02]} 9. Qxe4 {[%clk 0:02:41]}  Nd7 {[%clk 0:03:02]} 10. O-O {[%clk 0:02:40]}  Nf6 {[%clk 0:03:02]} 11. Qe2 {[%clk 0:02:41]}  g6 {[%clk 0:03:02]} 12. c3 {[%clk 0:02:41]}  Bg7 {[%clk 0:03:02]} 13. d4 {[%clk 0:02:42]}  O-O {[%clk 0:03:03]} 14. a4 {[%clk 0:02:40]}  a5 {[%clk 0:03:03]} 15. h4 {[%clk 0:02:38]}  h5 {[%clk 0:03:02]} 16. Bg5 {[%clk 0:02:36]}  Qb6 {[%clk 0:03:02]} 17. Rfe1 {[%clk 0:02:34]}  Nd5 {[%clk 0:03:01]} 18. Qd2 {[%clk 0:02:24]}  Kh7 {[%clk 0:02:59]} 19. Be4 {[%clk 0:02:18]}  Rfe8 {[%clk 0:02:53]} 20. Bc2 {[%clk 0:02:05]}  Rac8 {[%clk 0:02:47]} 21. Rad1 {[%clk 0:01:53]}  Kg8 {[%clk 0:02:45]} 22. Be4 {[%clk 0:01:49]}  Nf6 {[%clk 0:02:38]} 23. Bb1 {[%clk 0:01:47]}  Nd5 {[%clk 0:02:36]} 24. Qe2 {[%clk 0:01:42]}  Qb3 {[%clk 0:02:27]} 25. g4 {[%clk 0:01:42]}  hxg4 {[%clk 0:02:21]} 26. Qxg4 {[%clk 0:01:43]}  Qxb2 {[%clk 0:02:06]} 27. h5 {[%clk 0:01:41]}  gxh5 {[%clk 0:01:44]} 28. Qxh5 {[%clk 0:01:31]}  Qxc3 {[%clk 0:01:43]} 29. Re4 {[%clk 0:00:35]}  Qb3 {[%clk 0:01:27]} 30. Rh4 {[%clk 0:00:25]}  Kf8 {[%clk 0:01:19]} 31. Kg2 {[%clk 0:00:22]}  Nf6 {[%clk 0:01:04]} 32. Qe2 {[%clk 0:00:14]}  Qd5+ {[%clk 0:00:58]} 0-1


[Site "https://www.chess.com"]

[Event "Titled Tuesday Blitz December 14 2021"]
[White "Mohammad Fahad, Rahman"]
[Black "Bluebaum, Matthias"]
[WhiteFideId "10207791"]
[BlackFideId "24651516"]
[WhiteElo "2323"]
[BlackElo "2609"]
[Result "0-1"]
[Round "03"]
[TimeControl "180+1"]
[Date "2021.12.15"]
[WhiteClock "0:00:15"]
[BlackClock "0:00:31"]

1. Nf3 {[%clk 0:03:00]}  Nf6 {[%clk 0:02:59]} 2. d4 {[%clk 0:03:01]}  d5 {[%clk 0:02:59]} 3. c4 {[%clk 0:03:00]}  e6 {[%clk 0:02:59]} 4. Nc3 {[%clk 0:03:00]}  Bb4 {[%clk 0:02:59]} 5. cxd5 {[%clk 0:02:59]}  exd5 {[%clk 0:03:00]} 6. Bg5 {[%clk 0:02:59]}  h6 {[%clk 0:03:00]} 7. Bh4 {[%clk 0:02:59]}  Bf5 {[%clk 0:03:00]} 8. e3 {[%clk 0:02:58]}  Nbd7 {[%clk 0:03:00]} 9. Be2 {[%clk 0:02:48]}  c6 {[%clk 0:02:59]} 10. Qb3 {[%clk 0:02:46]}  Qb6 {[%clk 0:02:58]} 11. O-O {[%clk 0:02:44]}  Bd6 {[%clk 0:02:56]} 12. Bg3 {[%clk 0:02:23]}  Bxg3 {[%clk 0:02:48]} 13. hxg3 {[%clk 0:02:22]}  O-O {[%clk 0:02:48]} 14. Qa3 {[%clk 0:02:12]}  a5 {[%clk 0:02:44]} 15. b3 {[%clk 0:01:50]}  Rfe8 {[%clk 0:02:41]} 16. Nd2 {[%clk 0:01:35]}  h5 {[%clk 0:02:19]} 17. Qc1 {[%clk 0:01:30]}  Nf8 {[%clk 0:02:13]} 18. Na4 {[%clk 0:01:29]}  Qc7 {[%clk 0:02:12]} 19. Nc5 {[%clk 0:01:21]}  Ne6 {[%clk 0:02:11]} 20. Nxe6 {[%clk 0:01:11]}  Rxe6 {[%clk 0:02:12]} 21. Qd1 {[%clk 0:01:10]}  Bg4 {[%clk 0:02:08]} 22. Rc1 {[%clk 0:01:05]}  Rae8 {[%clk 0:02:07]} 23. Nf3 {[%clk 0:01:01]}  Bxf3 {[%clk 0:02:02]} 24. Bxf3 {[%clk 0:01:02]}  g6 {[%clk 0:02:02]} 25. Qd3 {[%clk 0:01:01]}  Kg7 {[%clk 0:02:01]} 26. Rc5 {[%clk 0:01:00]}  Ne4 {[%clk 0:01:55]} 27. Rc2 {[%clk 0:00:53]}  Rh8 {[%clk 0:01:49]} 28. Rfc1 {[%clk 0:00:52]}  h4 {[%clk 0:01:45]} 29. g4 {[%clk 0:00:19]}  h3 {[%clk 0:01:45]} 30. Qf1 {[%clk 0:00:15]}  Ng5 {[%clk 0:01:29]} 31. Bxd5 {[%clk 0:00:15]}  hxg2 {[%clk 0:01:07]} 32. Qxg2 {[%clk 0:00:14]}  Rf6 {[%clk 0:01:07]} 33. f4 {[%clk 0:00:13]}  Nh3+ {[%clk 0:01:08]} 34. Kf1 {[%clk 0:00:14]}  Nxf4 {[%clk 0:01:09]} 35. exf4 {[%clk 0:00:14]}  Qxf4+ {[%clk 0:01:09]} 36. Bf3 {[%clk 0:00:15]}  Qxf3+ {[%clk 0:01:04]} 37. Qxf3 {[%clk 0:00:16]}  Rxf3+ {[%clk 0:01:05]} 38. Kg2 {[%clk 0:00:17]}  Rf4 {[%clk 0:01:05]} 39. Kg3 {[%clk 0:00:17]}  Rxd4 {[%clk 0:01:05]} 40. Rc5 {[%clk 0:00:17]}  Rd3+ {[%clk 0:01:03]} 41. Kf4 {[%clk 0:00:18]}  Rhd8 {[%clk 0:00:52]} 42. R1c4 {[%clk 0:00:16]}  R8d4+ {[%clk 0:00:49]} 43. Rxd4 {[%clk 0:00:16]}  Rxd4+ {[%clk 0:00:50]} 44. Kf3 {[%clk 0:00:17]}  Rd5 {[%clk 0:00:50]} 45. Rc2 {[%clk 0:00:16]}  f5 {[%clk 0:00:50]} 46. gxf5 {[%clk 0:00:15]}  Rxf5+ {[%clk 0:00:51]} 47. Ke4 {[%clk 0:00:16]}  Kf6 {[%clk 0:00:51]} 48. Rh2 {[%clk 0:00:15]}  Re5+ {[%clk 0:00:45]} 49. Kf4 {[%clk 0:00:15]}  Rh5 {[%clk 0:00:45]} 50. Rd2 {[%clk 0:00:15]}  Ke6 {[%clk 0:00:39]} 51. Kg4 {[%clk 0:00:14]}  Rd5 {[%clk 0:00:39]} 52. Rh2 {[%clk 0:00:15]}  Rh5 {[%clk 0:00:34]} 53. Re2+ {[%clk 0:00:14]}  Kd6 {[%clk 0:00:34]} 54. Rd2+ {[%clk 0:00:13]}  Kc5 {[%clk 0:00:32]} 55. Rd7 {[%clk 0:00:13]}  b5 {[%clk 0:00:33]} 56. Rg7 {[%clk 0:00:13]}  Rh2 {[%clk 0:00:33]} 57. a4 {[%clk 0:00:13]}  bxa4 {[%clk 0:00:30]} 58. bxa4 {[%clk 0:00:14]}  Ra2 {[%clk 0:00:30]} 59. Rxg6 {[%clk 0:00:14]}  Rg2+ {[%clk 0:00:31]} 60. Kf3 {[%clk 0:00:15]}  Rxg6 {[%clk 0:00:31]} 0-1


[Site "https://www.chess.com"]

[Event "Titled Tuesday Blitz December 14 2021"]
[White "Moroni, Luca Jr"]
[Black "Perske, Thore"]
[WhiteFideId "865834"]
[BlackFideId "12902195"]
[WhiteElo "2491"]
[BlackElo "2315"]
[Result "1-0"]
[Round "03"]
[TimeControl "180+1"]
[Date "2021.12.14"]
[WhiteClock "0:01:20"]
[BlackClock "0:00:37"]

1. d4 {[%clk 0:03:00]}  Nf6 {[%clk 0:02:59]} 2. c4 {[%clk 0:03:01]}  g6 {[%clk 0:03:00]} 3. Nc3 {[%clk 0:03:01]}  Bg7 {[%clk 0:03:00]} 4. e4 {[%clk 0:03:01]}  d6 {[%clk 0:03:00]} 5. Bd3 {[%clk 0:03:01]}  O-O {[%clk 0:03:00]} 6. Nge2 {[%clk 0:03:02]}  e5 {[%clk 0:02:57]} 7. d5 {[%clk 0:03:01]}  a5 {[%clk 0:02:56]} 8. O-O {[%clk 0:03:01]}  Na6 {[%clk 0:02:56]} 9. a3 {[%clk 0:02:57]}  Bd7 {[%clk 0:02:49]} 10. Bc2 {[%clk 0:02:53]}  h5 {[%clk 0:02:45]} 11. Bg5 {[%clk 0:02:50]}  Qe8 {[%clk 0:02:44]} 12. f3 {[%clk 0:02:45]}  Nh7 {[%clk 0:02:43]} 13. Be3 {[%clk 0:02:44]}  f5 {[%clk 0:02:44]} 14. exf5 {[%clk 0:02:44]}  gxf5 {[%clk 0:02:44]} 15. f4 {[%clk 0:02:44]}  e4 {[%clk 0:02:44]} 16. Nd4 {[%clk 0:02:43]}  Nf6 {[%clk 0:02:34]} 17. h3 {[%clk 0:02:29]}  Kh7 {[%clk 0:02:20]} 18. Ba4 {[%clk 0:02:16]}  Bxa4 {[%clk 0:02:16]} 19. Qxa4 {[%clk 0:02:16]}  Qxa4 {[%clk 0:02:08]} 20. Nxa4 {[%clk 0:02:15]}  Nd7 {[%clk 0:02:02]} 21. Ne6 {[%clk 0:02:09]}  Rf7 {[%clk 0:02:03]} 22. Ng5+ {[%clk 0:02:08]}  Kg6 {[%clk 0:02:03]} 23. Nxf7 {[%clk 0:02:08]}  Kxf7 {[%clk 0:02:04]} 24. Rad1 {[%clk 0:01:59]}  Bf6 {[%clk 0:01:59]} 25. Bd4 {[%clk 0:01:58]}  Bxd4+ {[%clk 0:01:59]} 26. Rxd4 {[%clk 0:01:59]}  Nac5 {[%clk 0:01:57]} 27. Nxc5 {[%clk 0:01:58]}  Nxc5 {[%clk 0:01:56]} 28. Rd2 {[%clk 0:01:53]}  a4 {[%clk 0:01:52]} 29. Kf2 {[%clk 0:01:51]}  Ra6 {[%clk 0:01:28]} 30. g4 {[%clk 0:01:47]}  hxg4 {[%clk 0:01:25]} 31. hxg4 {[%clk 0:01:48]}  fxg4 {[%clk 0:01:26]} 32. Kg3 {[%clk 0:01:47]}  Ra8 {[%clk 0:01:10]} 33. Rh2 {[%clk 0:01:44]}  e3 {[%clk 0:01:02]} 34. f5 {[%clk 0:01:39]}  Re8 {[%clk 0:00:58]} 35. f6 {[%clk 0:01:26]}  e2 {[%clk 0:00:55]} 36. Rh7+ {[%clk 0:01:23]}  Kg8 {[%clk 0:00:37]} 37. f7+ {[%clk 0:01:23]}  Kxh7 {[%clk 0:00:37]} 38. Rh1+ {[%clk 0:01:20]} 1-0


[Site "https://www.chess.com"]

[Event "Titled Tuesday Blitz December 14 2021"]
[White "Murzin, Volodar"]
[Black "Dubov, Daniil"]
[WhiteFideId "44155573"]
[BlackFideId "24126055"]
[WhiteElo "2481"]
[BlackElo "2749"]
[Result "1-0"]
[Round "03"]
[TimeControl "180+1"]
[Date "2021.12.14"]
[WhiteClock "0:00:07"]
[BlackClock "0:00:06"]

1. e4 {[%clk 0:03:00]}  c5 {[%clk 0:02:57]} 2. Nf3 {[%clk 0:03:01]}  d6 {[%clk 0:02:57]} 3. d4 {[%clk 0:03:00]}  cxd4 {[%clk 0:02:58]} 4. Nxd4 {[%clk 0:03:00]}  Nf6 {[%clk 0:02:59]} 5. Nc3 {[%clk 0:03:01]}  Nc6 {[%clk 0:02:59]} 6. Bg5 {[%clk 0:02:55]}  g6 {[%clk 0:03:00]} 7. Bxf6 {[%clk 0:02:55]}  exf6 {[%clk 0:03:00]} 8. Bb5 {[%clk 0:02:55]}  Bd7 {[%clk 0:03:00]} 9. Nde2 {[%clk 0:02:55]}  Be6 {[%clk 0:03:00]} 10. Qd2 {[%clk 0:02:50]}  Bg7 {[%clk 0:02:59]} 11. Nf4 {[%clk 0:02:46]}  O-O {[%clk 0:02:59]} 12. Nxe6 {[%clk 0:02:46]}  fxe6 {[%clk 0:03:00]} 13. O-O-O {[%clk 0:02:46]}  f5 {[%clk 0:02:57]} 14. Qxd6 {[%clk 0:02:45]}  Qb6 {[%clk 0:02:57]} 15. e5 {[%clk 0:00:20]}  Qxf2 {[%clk 0:02:52]} 16. Qxe6+ {[%clk 0:00:19]}  Kh8 {[%clk 0:02:52]} 17. Bxc6 {[%clk 0:00:19]}  bxc6 {[%clk 0:02:52]} 18. Rhe1 {[%clk 0:00:16]}  Qxg2 {[%clk 0:02:50]} 19. Re2 {[%clk 0:00:13]}  Qf3 {[%clk 0:02:49]} 20. Qd6 {[%clk 0:00:10]}  Rab8 {[%clk 0:02:23]} 21. Qd3 {[%clk 0:00:07]}  Qf4+ {[%clk 0:02:22]} 22. Kb1 {[%clk 0:00:05]}  Bxe5 {[%clk 0:02:21]} 23. b3 {[%clk 0:00:04]}  Rbd8 {[%clk 0:02:15]} 24. Qxd8 {[%clk 0:00:03]}  Rxd8 {[%clk 0:02:16]} 25. Rxd8+ {[%clk 0:00:03]}  Kg7 {[%clk 0:02:17]} 26. Nd1 {[%clk 0:00:02]}  Bf6 {[%clk 0:02:08]} 27. Rd7+ {[%clk 0:00:03]}  Kh6 {[%clk 0:02:09]} 28. Rd3 {[%clk 0:00:03]}  Qf1 {[%clk 0:01:52]} 29. Ree3 {[%clk 0:00:03]}  f4 {[%clk 0:01:33]} 30. Rf3 {[%clk 0:00:04]}  Qe2 {[%clk 0:01:34]} 31. Rxf4 {[%clk 0:00:02]}  Qe5 {[%clk 0:01:34]} 32. Rfd4 {[%clk 0:00:03]}  Qxd4 {[%clk 0:00:49]} 33. Rxd4 {[%clk 0:00:04]}  Bxd4 {[%clk 0:00:49]} 34. c3 {[%clk 0:00:04]}  Bg1 {[%clk 0:00:49]} 35. Kc2 {[%clk 0:00:05]}  Bxh2 {[%clk 0:00:48]} 36. Kd3 {[%clk 0:00:06]}  Kg5 {[%clk 0:00:47]} 37. Ke4 {[%clk 0:00:06]}  h5 {[%clk 0:00:45]} 38. Kf3 {[%clk 0:00:06]}  Be5 {[%clk 0:00:44]} 39. c4 {[%clk 0:00:05]}  Bd4 {[%clk 0:00:44]} 40. b4 {[%clk 0:00:06]}  h4 {[%clk 0:00:43]} 41. Ke4 {[%clk 0:00:06]}  h3 {[%clk 0:00:14]} 42. Kxd4 {[%clk 0:00:05]}  h2 {[%clk 0:00:15]} 43. Nf2 {[%clk 0:00:06]}  Kf4 {[%clk 0:00:15]} 44. c5 {[%clk 0:00:04]}  g5 {[%clk 0:00:14]} 45. b5 {[%clk 0:00:04]}  g4 {[%clk 0:00:14]} 46. b6 {[%clk 0:00:03]}  g3 {[%clk 0:00:15]} 47. b7 {[%clk 0:00:03]}  Kf3 {[%clk 0:00:09]} 48. b8=Q {[%clk 0:00:04]}  Kxf2 {[%clk 0:00:09]} 49. Qf4+ {[%clk 0:00:05]}  Kg2 {[%clk 0:00:10]} 50. Qe4+ {[%clk 0:00:05]}  Kg1 {[%clk 0:00:09]} 51. Qe3+ {[%clk 0:00:05]}  Kg2 {[%clk 0:00:10]} 52. Qe2+ {[%clk 0:00:06]}  Kg1 {[%clk 0:00:09]} 53. Qe1+ {[%clk 0:00:05]}  Kg2 {[%clk 0:00:09]} 54. Qe2+ {[%clk 0:00:05]}  Kg1 {[%clk 0:00:10]} 55. Qf3 {[%clk 0:00:06]}  h1=Q {[%clk 0:00:04]} 56. Qxg3+ {[%clk 0:00:06]}  Kf1 {[%clk 0:00:05]} 57. Qd3+ {[%clk 0:00:05]}  Kf2 {[%clk 0:00:05]} 58. Qe3+ {[%clk 0:00:06]}  Kf1 {[%clk 0:00:04]} 59. Qc1+ {[%clk 0:00:06]}  Kg2 {[%clk 0:00:05]} 60. Qxh1+ {[%clk 0:00:06]}  Kxh1 {[%clk 0:00:06]} 61. Ke5 {[%clk 0:00:07]} 1-0


[Site "https://www.chess.com"]

[Event "Titled Tuesday Blitz December 14 2021"]
[White "Paravyan, David"]
[Black "Sapunov, Evgeny"]
[WhiteFideId "4194985"]
[BlackFideId "4126661"]
[WhiteElo "2656"]
[BlackElo "2470"]
[Result "1-0"]
[Round "03"]
[TimeControl "180+1"]
[Date "2021.12.14"]
[WhiteClock "0:00:04"]
[BlackClock "0:00:15"]

1. e4 {[%clk 0:03:00]}  c5 {[%clk 0:02:59]} 2. Nf3 {[%clk 0:02:59]}  d6 {[%clk 0:02:59]} 3. d4 {[%clk 0:02:59]}  cxd4 {[%clk 0:02:59]} 4. Nxd4 {[%clk 0:02:59]}  Nf6 {[%clk 0:03:00]} 5. Nc3 {[%clk 0:02:57]}  Nc6 {[%clk 0:02:56]} 6. Bg5 {[%clk 0:02:57]}  e6 {[%clk 0:02:56]} 7. Qd3 {[%clk 0:02:57]}  Qb6 {[%clk 0:02:56]} 8. Bxf6 {[%clk 0:02:53]}  gxf6 {[%clk 0:02:55]} 9. Nb3 {[%clk 0:02:51]}  a6 {[%clk 0:02:55]} 10. f4 {[%clk 0:02:50]}  h5 {[%clk 0:02:50]} 11. O-O-O {[%clk 0:02:48]}  h4 {[%clk 0:02:50]} 12. Kb1 {[%clk 0:02:48]}  Bd7 {[%clk 0:02:49]} 13. Be2 {[%clk 0:02:48]}  Qc7 {[%clk 0:02:46]} 14. Bg4 {[%clk 0:02:43]}  O-O-O {[%clk 0:02:43]} 15. Bh3 {[%clk 0:02:40]}  Kb8 {[%clk 0:02:39]} 16. Rhf1 {[%clk 0:02:40]}  Bc8 {[%clk 0:02:35]} 17. a3 {[%clk 0:02:39]}  Be7 {[%clk 0:02:35]} 18. Qe3 {[%clk 0:02:38]}  Na5 {[%clk 0:02:21]} 19. Nxa5 {[%clk 0:02:33]}  Qxa5 {[%clk 0:02:21]} 20. Rd4 {[%clk 0:02:32]}  Qc5 {[%clk 0:02:15]} 21. Qd3 {[%clk 0:02:28]}  Bd7 {[%clk 0:02:10]} 22. Rc4 {[%clk 0:02:25]}  Qb6 {[%clk 0:02:09]} 23. Rb4 {[%clk 0:02:24]}  Qa7 {[%clk 0:02:07]} 24. Rb3 {[%clk 0:02:23]}  Rc8 {[%clk 0:02:04]} 25. Rd1 {[%clk 0:02:12]}  Ka8 {[%clk 0:02:02]} 26. Rb4 {[%clk 0:02:06]}  Qc5 {[%clk 0:01:48]} 27. Na4 {[%clk 0:01:56]}  Bxa4 {[%clk 0:01:47]} 28. Rxa4 {[%clk 0:01:56]}  Rc7 {[%clk 0:01:41]} 29. Rb4 {[%clk 0:01:55]}  Rhc8 {[%clk 0:01:39]} 30. c3 {[%clk 0:01:49]}  Qf2 {[%clk 0:01:38]} 31. Rb3 {[%clk 0:01:46]}  Qxf4 {[%clk 0:01:37]} 32. Qf3 {[%clk 0:00:50]}  Qxh2 {[%clk 0:01:31]} 33. Qh5 {[%clk 0:00:49]}  Bf8 {[%clk 0:01:25]} 34. Qxh4 {[%clk 0:00:45]}  Qe5 {[%clk 0:01:22]} 35. Qe1 {[%clk 0:00:42]}  Rc4 {[%clk 0:01:18]} 36. g3 {[%clk 0:00:22]}  Rxe4 {[%clk 0:01:14]} 37. Qf1 {[%clk 0:00:20]}  d5 {[%clk 0:01:10]} 38. Bg2 {[%clk 0:00:20]}  Rec4 {[%clk 0:01:06]} 39. Qd3 {[%clk 0:00:14]}  f5 {[%clk 0:01:02]} 40. Ka2 {[%clk 0:00:13]}  Qc7 {[%clk 0:00:57]} 41. Rh1 {[%clk 0:00:12]}  Bd6 {[%clk 0:00:56]} 42. Rh7 {[%clk 0:00:12]}  Rg8 {[%clk 0:00:54]} 43. Bf3 {[%clk 0:00:09]}  Rxg3 {[%clk 0:00:52]} 44. Qe2 {[%clk 0:00:08]}  Rf4 {[%clk 0:00:39]} 45. Bh5 {[%clk 0:00:08]}  Qc4 {[%clk 0:00:25]} 46. Rxf7 {[%clk 0:00:03]}  Qxe2 {[%clk 0:00:21]} 47. Bxe2 {[%clk 0:00:03]}  Rf2 {[%clk 0:00:21]} 48. Rbxb7 {[%clk 0:00:02]}  Rxe2 {[%clk 0:00:20]} 49. Ra7+ {[%clk 0:00:02]}  Kb8 {[%clk 0:00:20]} 50. Rad7 {[%clk 0:00:02]}  Bc7 {[%clk 0:00:16]} 51. Rxc7 {[%clk 0:00:02]}  Rgg2 {[%clk 0:00:17]} 52. Rb7+ {[%clk 0:00:02]}  Kc8 {[%clk 0:00:17]} 53. Rfc7+ {[%clk 0:00:03]}  Kd8 {[%clk 0:00:18]} 54. Rh7 {[%clk 0:00:04]}  Kc8 {[%clk 0:00:18]} 55. Rhc7+ {[%clk 0:00:04]}  Kd8 {[%clk 0:00:18]} 56. a4 {[%clk 0:00:04]}  a5 {[%clk 0:00:18]} 57. Ka3 {[%clk 0:00:04]}  f4 {[%clk 0:00:18]} 58. Rh7 {[%clk 0:00:04]}  Kc8 {[%clk 0:00:18]} 59. Rbf7 {[%clk 0:00:05]}  Rg8 {[%clk 0:00:15]} 60. Rxf4 {[%clk 0:00:04]}  Rd8 {[%clk 0:00:14]} 61. Rff7 {[%clk 0:00:04]}  d4 {[%clk 0:00:14]} 62. Rc7+ {[%clk 0:00:04]}  Kb8 {[%clk 0:00:14]} 63. Rb7+ {[%clk 0:00:04]}  Kc8 {[%clk 0:00:15]} 64. Rhc7# {[%clk 0:00:04]} 1-0


[Site "https://www.chess.com"]